bitfinex/quotes_ETHUSD_20250924
["timestamp","ask_amount","ask_price","bid_price","bid_amount"]
[1758753652294,6.998,4166.3,4166.2,14.7478]
[1758753652694,6.998,4166.3,4166.2,15.2031]
[1758753657103,7.37437507,4166.3,4166.2,15.2031]
[1758753659918,6.998,4166.3,4166.2,15.2031]
[1758753660681,3.001,4166.3,4166.2,14.5]
[1758753660884,0.001,4166.3,4166.2,19.01486883]
[1758753661085,0.001,4166.7,4166.6,2.4000384]
[1758753661320,0.001,4166.7,4166.6,6.3970384]
[1758753661521,0.001,4166.7,4166.6,8.01021354]
[1758753671945,0.001,4166.7,4166.6,8.80221354]
[1758753672231,0.001,4166.7,4166.6,8.92141354]
[1758753674908,0.001,4166.7,4166.6,8.80221354]
[1758753675238,0.001,4166.7,4166.6,8.92141354]
[1758753675441,0.001,4166.7,4166.6,23.42141354]
[1758753677412,0.001,4166.7,4166.6,23.45861354]
[1758753685940,0.001,4166.7,4166.6,22.98511354]
[1758753686110,0.001,4166.7,4166.6,23.45861354]
[1758753688801,0.001,4166.7,4166.6,22.98511354]
[1758753689213,0.001,4166.7,4166.6,23.45861354]
[1758753692438,0.001,4166.7,4166.6,19.00451354]
[1758753692737,0.001,4166.7,4166.6,17.96781354]
[1758753692930,0.001,4166.7,4166.6,21.96181354]
[1758753693599,0.001,4166.7,4166.6,22.75381354]
[1758753694911,0.001,4166.7,4166.6,22.63461354]
[1758753703281,0.001,4166.7,4166.6,22.87011354]
[1758753703786,0.001,4166.7,4166.6,23.33981354]
[1758753704292,0.001,4167.2,4167.1,3.19175042]
[1758753704577,0.001,4167.2,4167.1,8.08810184]
[1758753704776,0.001,4167.2,4167.1,8.88850434]
[1758753704952,0.001,4167.2,4167.1,23.38850434]
[1758753725669,0.09620484,4169.0,4168.4,2.39900201]
[1758753725809,0.09620484,4169.0,4168.8,2.39877182]
[1758753726007,0.09620484,4169.0,4168.8,6.39077182]
[1758753726247,0.4207,4169.3,4168.8,21.68277182]
[1758753726471,0.0651,4169.5,4168.8,21.68277182]
[1758753726654,0.4207,4169.4,4168.8,21.68277182]
[1758753727832,0.4207,4169.7,4168.9,3.19071428]
[1758753728142,0.4207,4169.7,4169.6,2.39831158]
[1758753728360,0.4858,4169.7,4169.6,2.39831158]
[1758753728671,0.4858,4169.7,4169.6,16.89831158]
[1758753729545,0.4207,4169.7,4169.6,16.89831158]
[1758753729749,0.02,4169.9,4169.8,2.39819655]
[1758753730132,0.02,4169.9,4169.8,6.41417851]
[1758753730447,0.02,4169.9,4169.8,6.39019655]
[1758753731025,0.4407,4169.9,4169.8,6.39019655]
[1758753731414,0.4407,4169.9,4169.8,20.89019655]
[1758753732315,0.02,4169.9,4169.8,20.89019655]
[1758753733349,0.02,4169.9,4169.8,21.68219655]
[1758753733649,0.02,4169.9,4169.8,22.82448208]
[1758753734845,0.02,4169.9,4169.8,20.88919655]
[1758753737839,0.02,4169.9,4169.8,14.5]
[1758753737840,0.4407,4169.9,4169.8,14.5]
[1758753738030,0.5058,4169.9,4169.8,14.5]
[1758753742149,0.88186072,4169.9,4169.8,14.5]
[1758753743249,0.88186072,4169.9,4169.8,16.89819655]
[1758753743753,0.39606072,4169.9,4169.8,16.89819655]
[1758753743980,0.81676072,4169.9,4169.8,14.5]
[1758753744161,0.81676072,4169.9,4169.8,16.89819655]
[1758753744962,0.39606072,4169.9,4169.8,16.89819655]
[1758753745652,0.51626072,4169.9,4169.8,16.89819655]
[1758753746052,0.1402,4169.9,4169.8,16.89819655]
[1758753753972,0.1402,4169.9,4169.8,17.59379655]
[1758753756070,0.1402,4169.9,4169.8,16.89819655]
[1758753761803,0.021,4169.9,4169.8,17.59379655]
[1758753761970,0.021,4169.9,4169.8,19.9850827]
[1758753777819,0.021,4169.9,4169.8,19.2894827]
[1758753778330,0.021,4169.9,4169.8,19.5300827]
[1758753778531,0.021,4169.9,4169.8,20.0047827]
[1758753780530,0.021,4169.9,4169.8,19.2894827]
[1758753780721,0.021,4169.9,4169.8,16.89819655]
[1758753781122,0.021,4169.9,4169.8,17.13259655]
[1758753783207,0.021,4169.9,4169.8,16.89819655]
[1758753783539,0.021,4169.9,4169.8,20.88619655]
[1758753785006,0.5068,4169.9,4169.8,20.88619655]
[1758753785715,0.021,4169.9,4169.8,20.88619655]
[1758753786406,0.021,4169.9,4169.8,21.12059655]
[1758753786620,0.021,4169.9,4169.8,21.57989655]
[1758753787027,0.021,4169.9,4169.8,23.36217947]
[1758753787229,0.021,4169.9,4169.8,23.82147947]
[1758753788006,0.001,4170.4,4170.3,2.39790902]
[1758753788202,0.001,4170.4,4170.3,6.40988811]
[1758753788440,0.001,4170.4,4170.3,7.07960902]
[1758753791258,0.001,4170.4,4170.3,8.0273682]
[1758753792162,0.001,4170.4,4170.3,8.8193682]
[1758753792643,0.001,4170.4,4170.3,23.3193682]
[1758753796874,0.001,4170.4,4170.3,18.6376682]
[1758753797177,0.001,4170.4,4170.3,21.79610902]
[1758753800973,0.001,4170.4,4170.3,14.5]
[1758753801136,0.4868,4170.4,4169.4,3.987]
[1758753801474,2.3980256,4170.1,4169.2,2.39850202]
[1758753801646,2.39885747,4170.4,4168.5,0.6923]
[1758753801647,3.0,4169.9,4168.5,0.6923]
[1758753801847,0.4858,4170.0,4168.4,0.002]
[1758753802046,1.998,4170.1,4168.7,0.831]
[1758753802047,1.1781,4169.8,4168.7,0.831]
[1758753802248,2.39825921,4169.7,4168.6,14.5]
[1758753802452,3.0,4169.5,4168.1,0.02]
[1758753802663,2.3989954,4168.5,4167.4,2.3995638]
[1758753802865,3.4187,4168.9,4167.5,14.5239952]
[1758753803071,0.4838,4168.8,4168.1,2.39917073]
[1758753803375,0.37618409,4168.6,4167.8,0.246]
[1758753803537,0.37618409,4168.6,4168.5,2.39894446]
[1758753803737,0.0651,4168.9,4168.5,14.5]
[1758753803943,0.4838,4168.8,4168.5,14.5]
[1758753804157,0.4187,4168.7,4168.5,14.5]
[1758753804554,0.4838,4168.7,4168.5,14.5]
[1758753807045,0.4187,4168.7,4168.5,14.5]
[1758753807985,0.4187,4168.7,4168.5,16.8989416]
[1758753808280,0.37615735,4168.8,4168.5,16.8989416]
[1758753808281,0.37615735,4168.8,4168.6,2.3988747]
[1758753808481,0.37615735,4168.8,4168.7,2.39882937]
[1758753808783,6.988,4169.5,4168.5,14.5]
[1758753808784,0.4838,4169.2,4168.5,14.5]
[1758753809293,0.4838,4169.1,4168.6,2.39886241]
[1758753809450,3.0,4169.2,4168.6,2.39886241]
[1758753809451,3.0,4169.3,4168.6,2.39886241]
[1758753809650,0.4838,4169.0,4168.6,2.39886241]
[1758753810452,0.4838,4169.0,4168.5,14.5]
[1758753810666,0.4838,4169.0,4168.6,2.39888547]
[1758753811175,0.1192,4168.8,4168.6,2.39888547]
[1758753811387,0.1192,4168.8,4168.7,2.39882937]
[1758753812219,0.1192,4168.8,4168.5,14.5]
[1758753812516,0.603,4168.8,4168.5,14.5]
[1758753812697,0.5379,4168.8,4168.5,16.89892372]
[1758753812877,0.1192,4168.8,4168.5,16.89892372]
[1758753813084,0.49535028,4168.8,4168.5,16.89892372]
[1758753813381,0.37615028,4168.8,4168.5,14.5]
[1758753813588,0.1192,4168.6,4168.5,14.5]
[1758753818523,0.1192,4168.6,4168.5,17.14494446]
[1758753818725,0.1192,4168.6,4168.5,17.59124446]
[1758753826955,0.3761422,4168.8,4168.5,17.59124446]
[1758753826956,0.3761422,4168.8,4168.7,2.39882937]
[1758753827441,0.3761422,4168.8,4168.7,3.07372937]
[1758753827849,0.3761422,4168.8,4168.7,0.6749]
[1758753828053,0.3761422,4168.8,4168.7,0.2323]
[1758753828377,0.3761422,4168.8,4168.5,14.5]
[1758753828579,0.3761422,4168.8,4168.5,16.89894294]
[1758753828748,0.3761422,4168.8,4168.6,2.39887667]
[1758753829136,0.3761422,4168.8,4168.5,16.89893729]
[1758753829654,0.3761422,4168.8,4168.5,14.5]
[1758753829859,3.0,4169.1,4168.5,14.5]
[1758753829860,4.4728,4168.7,4168.5,14.5]
[1758753830169,3.4838,4168.6,4168.5,14.5]
[1758753831835,3.4187,4168.6,4168.5,14.5]
[1758753832177,3.4197,4168.6,4168.5,14.5]
[1758753833380,3.001,4168.6,4168.5,14.5]
[1758753834260,3.3771657,4168.6,4168.5,14.5]
[1758753838892,3.3771657,4168.6,4168.5,15.1749]
[1758753839254,3.3771657,4168.6,4168.5,14.7323]
[1758753839864,3.001,4168.6,4168.5,14.5]
[1758753843190,3.37716225,4168.6,4168.5,14.5]
[1758753849776,3.001,4168.6,4168.5,14.5]
[1758753850898,2.39905956,4168.3,4168.2,0.002]
[1758753851211,9.38805956,4168.3,4168.2,0.002]
[1758753855106,9.87185956,4168.3,4168.2,0.002]
[1758753855631,9.80675956,4168.3,4168.2,0.002]
[1758753855993,9.38805956,4168.3,4168.2,0.002]
[1758753858389,10.24807889,4168.3,4168.2,0.002]
[1758753859327,10.18297889,4168.3,4168.2,0.002]
[1758753859833,10.24807889,4168.3,4168.2,0.002]
[1758753860037,3.0,4168.3,4168.2,0.002]
[1758753860320,6.99,4168.3,4168.2,0.685]
[1758753861021,3.0,4168.3,4168.2,0.685]
[1758753861213,6.99,4168.3,4168.2,0.685]
[1758753863720,6.99,4168.3,4168.2,15.185]
[1758753867438,9.38905956,4168.3,4168.2,14.502]
[1758753867606,6.99,4168.3,4168.2,14.502]
[1758753868738,9.76526653,4168.3,4168.2,14.502]
[1758753869062,9.83036653,4168.3,4168.2,0.002]
[1758753869348,10.24906653,4168.3,4168.2,0.002]
[1758753869918,9.87285956,4168.3,4168.2,0.002]
[1758753870239,9.87385956,4168.3,4168.2,0.002]
[1758753870648,9.80875956,4168.3,4168.2,0.002]
[1758753872548,9.39005956,4168.3,4168.2,0.002]
[1758753874441,9.76628369,4168.3,4168.2,0.002]
[1758753876540,10.25008369,4168.3,4168.2,0.002]
[1758753879558,9.76628369,4168.3,4168.2,0.002]
[1758753879760,9.87385956,4168.3,4168.2,0.002]
[1758753879966,9.87385956,4168.3,4167.6,14.7284]
[1758753879967,3.0,4168.2,4167.5,0.002]
[1758753880265,2.39946252,4167.6,4167.5,0.002]
[1758753880590,11.39146252,4167.6,4167.5,0.002]
[1758753881236,11.61986252,4167.6,4167.5,0.002]
[1758753885067,2.39969283,4167.2,4166.8,14.502]
[1758753885270,9.39169283,4167.2,4166.9,0.2294]
[1758753885567,9.39169283,4167.2,4167.1,0.6856]
[1758753886170,9.39169283,4167.2,4167.1,0.022]
[1758753888493,9.76800314,4167.2,4167.1,0.022]
[1758753888704,9.88736605,4167.2,4167.1,0.022]
[1758753889565,2.3998656,4166.9,4166.8,0.002]
[1758753889764,9.3908656,4166.9,4166.8,0.002]
[1758753890865,6.991,4166.9,4166.8,0.002]
[1758753891065,9.3908656,4166.9,4166.8,0.002]
[1758753893085,9.7672016,4166.9,4166.8,0.002]
[1758753899811,9.3908656,4166.9,4166.8,0.002]
[1758753904238,9.76721019,4166.9,4166.8,0.002]
[1758753909750,9.3908656,4166.9,4166.8,0.002]
[1758753910054,9.3908656,4166.9,4166.4,0.002]
[1758753910055,2.3999808,4166.7,4166.4,0.002]
[1758753910225,2.400096,4166.5,4166.4,0.002]
[1758753910723,2.40026883,4166.2,4165.9,0.002]
[1758753910925,9.39126883,4166.2,4165.9,0.002]
[1758753911135,9.39126883,4166.2,4165.9,14.502]
[1758753911717,9.39126883,4166.2,4165.9,0.002]
[1758753912158,9.39126883,4166.2,4165.9,0.2309]
[1758753914648,9.76766948,4166.2,4165.9,0.2309]
[1758753914849,9.76766948,4166.2,4166.1,0.2489]
[1758753918949,9.76766948,4166.2,4166.1,0.02]
[1758753919838,9.39126883,4166.2,4166.1,0.02]
[1758753923268,5.40032644,4166.1,4165.9,0.002]
[1758753923468,2.40055692,4165.7,4165.6,0.002]
[1758753923639,11.39255692,4165.7,4165.6,0.002]
[1758753934286,11.39255692,4165.7,4165.6,0.002]
[1758753934902,11.39255692,4165.7,4165.6,0.2309]
[1758753936420,5.40055692,4165.7,4165.6,0.2309]
[1758753936705,11.39255692,4165.7,4165.6,0.6946]
[1758753937688,11.76900316,4165.7,4165.6,0.6946]
[1758753939735,11.39255692,4165.7,4165.6,0.6946]
[1758753940249,11.39255692,4165.7,4165.6,0.2309]
[1758753940410,11.39255692,4165.7,4165.6,0.002]
[1758753942815,9.39255692,4165.7,4165.6,0.002]
[1758753943016,11.39255692,4165.7,4165.6,0.002]
[1758753945746,12.18770583,4165.7,4165.6,0.002]
[1758753945952,2.40067218,4165.5,4165.4,0.002]
[1758753946260,9.39267218,4165.5,4165.4,0.002]
[1758753946610,9.48895946,4165.5,4165.4,0.002]
[1758753947553,9.48895946,4165.5,4165.4,0.2412]
[1758753947869,9.48895946,4165.5,4165.4,0.6795]
[1758753948430,3.09628728,4165.5,4165.4,0.6795]
[1758753948870,7.08828728,4165.5,4165.4,0.6795]
[1758753951769,3.09628728,4165.5,4165.4,0.6795]
[1758753951963,7.08828728,4165.5,4165.4,0.6795]
[1758753953368,7.08828728,4165.5,4165.4,3.08022982]
[1758753953888,7.08828728,4165.5,4165.4,0.6795]
[1758753954577,3.09628728,4165.5,4165.4,0.6795]
[1758753954748,7.08828728,4165.5,4165.4,0.6795]
[1758753957362,7.08828728,4165.5,4165.4,3.08022982]
[1758753957665,7.08828728,4165.5,4165.4,0.6795]
[1758753961662,7.08828728,4165.5,4165.4,0.2412]
[1758753961860,7.08828728,4165.5,4165.4,0.002]
[1758753963902,7.08828728,4165.5,4165.4,0.6797]
[1758753964077,3.09628728,4165.5,4165.4,0.6797]
[1758753964282,7.08828728,4165.5,4165.4,0.6797]
[1758753965008,7.08828728,4165.5,4165.4,0.2351]
[1758753965207,7.08828728,4165.5,4165.4,0.002]
[1758753965405,7.08828728,4165.5,4165.4,0.2351]
[1758753966111,7.08828728,4165.5,4165.4,0.002]
[1758753966903,7.08828728,4165.5,4165.4,0.6797]
[1758753967211,7.46472917,4165.5,4165.4,0.6797]
[1758753968997,3.47272917,4165.5,4165.4,0.6797]
[1758753969207,7.46472917,4165.5,4165.4,0.6797]
[1758753970108,7.08828728,4165.5,4165.4,0.6797]
[1758753970315,7.08728728,4165.5,4165.4,0.6797]
[1758753970616,3.09628728,4165.5,4165.4,3.08042982]
[1758753970774,6.97528728,4165.5,4165.4,3.08042982]
[1758753972272,0.001,4165.8,4165.4,3.63335657]
[1758753972510,0.001,4165.8,4165.7,2.40055692]
[1758753972710,0.001,4165.8,4165.7,2.42456248]
[1758753972908,0.001,4165.8,4165.7,3.12266248]
[1758753973077,0.001,4165.8,4165.7,3.74248443]
[1758753973614,0.001,4165.8,4165.7,3.71847887]
[1758753974119,3.912,4165.8,4165.7,2.85485692]
[1758753974277,3.912,4165.8,4165.7,3.09865692]
[1758753975418,0.001,4165.8,4165.7,3.09865692]
[1758753976777,0.001,4165.8,4165.7,3.12266248]
[1758753977002,0.001,4165.8,4165.7,3.73048843]
[1758753980213,0.001,4165.8,4165.7,18.23048843]
[1758753980522,0.001,4165.8,4165.7,18.20648287]
[1758753980855,0.001,4165.8,4165.7,18.99848287]
[1758753984021,0.001,4165.8,4165.7,19.11848287]
[1758753984612,0.001,4165.8,4165.7,19.21471687]
[1758753985210,0.001,4165.8,4165.7,23.20571687]
[1758754001555,0.001,4165.8,4165.7,23.10948287]
[1758754005228,0.001,4165.8,4165.7,23.20570877]
[1758754006870,0.001,4165.8,4165.7,26.20570877]
[1758754007075,0.4187,4167.3,4167.0,3.19180801]
[1758754007290,0.4187,4167.3,4167.0,7.20480609]
[1758754007499,0.4848,4168.0,4167.0,7.42020801]
[1758754007500,0.001,4168.0,4167.0,7.42020801]
[1758754007654,0.001,4168.0,4167.0,22.35930801]
[1758754007853,0.0851,4167.9,4167.0,22.35930801]
[1758754008089,0.02,4167.9,4167.0,22.35930801]
[1758754011196,0.4187,4167.8,4167.0,22.35930801]
[1758754011396,0.001,4167.6,4167.0,21.68080801]
[1758754011704,0.4848,4167.1,4167.0,20.08309416]
[1758754011869,0.4848,4167.1,4167.0,24.07209416]
[1758754012187,0.001,4167.1,4167.0,24.07209416]
[1758754012590,0.4197,4167.1,4167.0,24.07209416]
[1758754014189,0.001,4167.1,4167.0,24.07209416]
[1758754016891,0.001,4167.1,4167.0,24.19129416]
[1758754017595,0.001,4167.1,4167.0,24.86979416]
[1758754021771,0.001,4167.1,4167.0,24.63039416]
[1758754021970,0.001,4167.1,4167.0,24.19129416]
[1758754023388,0.4197,4167.1,4167.0,17.81100801]
[1758754023723,0.4848,4167.1,4167.0,21.00700801]
[1758754023899,0.4848,4167.1,4167.0,21.79900801]
[1758754026725,0.4197,4167.1,4167.0,21.79900801]
[1758754027031,0.001,4167.1,4167.0,21.79900801]
[1758754027188,0.001,4167.1,4167.0,24.73013777]
[1758754027389,0.001,4167.1,4167.0,24.84933777]
[1758754028416,0.001,4167.1,4167.0,24.60473777]
[1758754028613,0.001,4167.1,4167.0,24.84933777]
[1758754028926,0.001,4167.1,4167.0,24.42093777]
[1758754031829,0.001,4167.1,4167.0,24.84933777]
[1758754032824,0.001,4167.1,4167.0,24.17633777]
[1758754033639,0.001,4167.1,4167.0,17.81100801]
[1758754033839,0.4848,4167.1,4167.0,21.00700801]
[1758754035127,0.001,4167.1,4167.0,21.00700801]
[1758754047378,0.001,4167.1,4167.0,17.01900801]
[1758754047557,0.4848,4167.1,4167.0,16.89980801]
[1758754047763,0.9706,4167.1,4167.0,16.89980801]
[1758754047962,0.4868,4167.1,4167.0,16.89980801]
[1758754049686,0.9706,4167.1,4167.0,14.5]
[1758754055668,0.9055,4167.1,4167.0,14.5]
[1758754057278,0.4868,4167.1,4167.0,14.5]
[1758754057772,0.4868,4167.1,4167.0,16.89980801]
[1758754057973,0.5519,4167.1,4167.0,14.5]
[1758754058277,0.9706,4167.1,4167.0,14.5]
[1758754058577,0.9055,4167.1,4167.0,14.5]
[1758754059061,0.4868,4167.1,4167.0,14.5]
[1758754060560,0.4868,4167.1,4166.6,0.002]
[1758754060561,6.30525549,4167.1,4166.6,0.002]
[1758754060759,2.3998656,4166.9,4166.6,0.002]
[1758754061107,2.3999808,4166.7,4166.6,0.002]
[1758754061393,9.3889808,4166.7,4166.6,0.002]
[1758754061762,9.8727808,4166.7,4166.6,0.002]
[1758754063246,2.40021121,4166.3,4166.2,0.002]
[1758754063648,5.88401121,4166.3,4166.2,0.002]
[1758754063954,6.60596597,4166.3,4166.2,0.002]
[1758754064885,4.20575476,4166.3,4166.2,0.002]
[1758754065657,6.60596597,4166.3,4166.2,0.002]
[1758754066186,6.98235407,4166.3,4166.2,0.002]
[1758754066695,3.0,4166.1,4165.8,14.502]
[1758754066855,5.40044168,4165.9,4165.8,14.502]
[1758754067193,5.88424168,4165.9,4165.8,14.502]
[1758754067796,3.4838,4165.9,4165.8,14.502]
[1758754068295,5.88424168,4165.9,4165.8,14.502]
[1758754068661,2.40055692,4165.7,4165.4,0.002]
[1758754068877,5.40055692,4165.7,4165.4,0.002]
[1758754069193,5.88435692,4165.7,4165.4,0.002]
[1758754070072,3.4838,4165.7,4165.4,0.002]
[1758754070268,3.4187,4165.7,4165.4,0.002]
[1758754070591,5.88435692,4165.7,4165.4,0.002]
[1758754071700,3.4838,4165.7,4165.4,0.002]
[1758754071872,9.87435692,4165.7,4165.4,0.002]
[1758754072705,9.80925692,4165.7,4165.4,0.002]
[1758754074208,7.4087,4165.7,4165.4,0.002]
[1758754074713,9.80925692,4165.7,4165.4,0.002]
[1758754074874,6.99,4165.7,4165.4,0.002]
[1758754075305,9.39055692,4165.7,4165.4,0.002]
[1758754075807,9.87435692,4165.7,4165.4,0.002]
[1758754076590,10.25081253,4165.7,4165.4,0.002]
[1758754076801,9.87435692,4165.7,4165.4,0.002]
[1758754078179,9.80925692,4165.7,4165.4,0.002]
[1758754079226,9.87435692,4165.7,4165.4,0.002]
[1758754080032,2.40067218,4165.5,4165.2,0.002]
[1758754080235,2.40084509,4165.2,4163.1,0.02]
[1758754080408,2.40107568,4164.8,4163.8,0.4707]
[1758754080613,9.39107568,4164.8,4164.0,0.2291]
[1758754080806,9.39107568,4164.8,4164.1,14.52]
[1758754081007,9.39107568,4164.8,4164.1,14.7491]
[1758754081515,9.48737966,4164.8,4164.1,14.7491]
[1758754081919,9.48737966,4164.8,4164.2,0.2291]
[1758754084194,9.48737966,4164.8,4164.3,0.2291]
[1758754084694,9.48737966,4164.8,4164.1,14.9907]
[1758754084895,3.09630398,4164.8,4164.7,0.7018]
[1758754085132,3.09630398,4164.8,4164.7,3.10293333]
[1758754085133,7.08830398,4164.8,4164.7,3.10293333]
[1758754085330,0.09630398,4164.8,4164.7,3.65355095]
[1758754085495,2.0,4165.5,4165.0,2.40091709]
[1758754085695,3.274,4165.4,4165.1,0.6998]
[1758754085898,3.0,4165.9,4165.2,0.6998]
[1758754086100,5.992,4165.8,4165.2,3.10063978]
[1758754086344,3.0,4165.7,4165.3,0.6998]
[1758754086549,3.0,4165.5,4165.4,15.1998]
[1758754086910,3.0,4165.5,4165.4,14.5]
[1758754086911,5.40067218,4165.5,4165.4,14.5]
[1758754087110,2.40083259,4165.3,4164.7,0.002]
[1758754087316,3.0,4165.1,4164.7,0.7018]
[1758754087529,3.0,4164.9,4164.8,15.1998]
[1758754089108,3.0,4164.9,4164.8,14.7291]
[1758754089310,3.37649444,4164.9,4164.8,0.2291]
[1758754089955,3.0,4164.9,4164.8,0.6998]
[1758754090149,0.001,4166.2,4164.8,2.48429945]
[1758754090451,2.0,4166.1,4165.4,2.40067854]
[1758754090616,0.001,4166.2,4165.5,0.72380672]
[1758754090954,0.001,4166.2,4165.6,14.5]
[1758754091136,0.12,4165.7,4165.6,16.90060923]
[1758754091336,1.408,4165.7,4165.6,14.5]
[1758754091746,0.12,4165.7,4165.6,17.60041455]
[1758754092054,0.12,4165.7,4165.6,19.6005289]
[1758754092643,0.12,4165.7,4165.6,15.1998]
[1758754093419,0.12,4165.7,4165.6,17.60041455]
[1758754093618,0.12,4165.7,4165.6,15.1998]
[1758754094776,0.12,4165.7,4165.6,17.60041455]
[1758754095675,0.12,4165.7,4165.6,15.1998]
[1758754095848,0.121,4165.7,4165.6,14.7291]
[1758754096050,0.121,4165.7,4165.6,15.1655]
[1758754097175,0.121,4165.7,4165.6,17.56611455]
[1758754097371,0.121,4165.7,4165.6,15.1655]
[1758754099675,3.121,4165.7,4165.6,14.5]
[1758754099986,3.121,4165.7,4165.1,0.2284]
[1758754100183,0.12,4165.5,4165.1,0.2284]
[1758754100478,3.994,4165.4,4165.2,14.7284]
[1758754100780,3.994,4165.4,4165.3,0.2284]
[1758754100981,3.994,4165.4,4165.3,0.6648]
[1758754103064,3.994,4165.4,4165.3,0.2284]
[1758754103964,3.994,4165.4,4165.3,14.7284]
[1758754104703,3.991586,4165.4,4165.3,14.7284]
[1758754105198,3.991586,4165.4,4165.3,17.56558745]
[1758754105698,3.991586,4165.4,4165.3,15.1648]
[1758754107804,3.991586,4165.4,4165.3,17.56558745]
[1758754108814,3.991586,4165.4,4165.3,15.1648]
[1758754109583,3.991586,4165.4,4165.3,14.7284]
[1758754110490,0.12,4165.5,4165.3,14.5]
[1758754110691,3.12,4165.5,4164.9,0.2284]
[1758754110881,3.12,4165.5,4164.7,0.002]
[1758754110882,0.12,4165.1,4164.7,0.002]
[1758754111082,4.113,4165.1,4164.7,2.40312906]
[1758754111313,4.113,4165.1,4164.8,14.5]
[1758754112016,4.113,4165.1,4164.8,17.1294595]
[1758754112214,4.113,4165.1,4164.9,0.2284]
[1758754112386,4.113,4165.1,4165.0,0.2284]
[1758754112915,4.113,4165.1,4165.0,0.6648]
[1758754113583,4.113,4165.1,4165.0,0.2284]
[1758754113786,4.113,4165.1,4164.8,14.502]
[1758754114641,4.113,4165.1,4164.8,16.90306339]
[1758754114790,4.113,4165.1,4164.9,2.4010133]
[1758754114988,4.113,4165.1,4165.0,0.6648]
[1758754115586,4.113,4165.1,4165.0,0.2284]
[1758754117139,2.40101803,4164.9,4164.8,0.002]
[1758754117310,9.39501803,4164.9,4164.8,0.002]
[1758754117519,9.87881803,4164.9,4164.8,0.002]
[1758754127127,10.25536068,4164.9,4164.8,0.002]
[1758754129358,10.19026068,4164.9,4164.8,0.002]
[1758754129867,10.25536068,4164.9,4164.8,0.002]
[1758754130166,2.40136397,4164.3,4164.2,0.002]
[1758754130334,8.39536397,4164.3,4164.2,0.002]
[1758754130535,11.51536397,4164.3,4164.2,0.002]
[1758754130735,11.61167931,4164.3,4164.2,0.002]
[1758754131165,9.21031534,4164.3,4164.2,0.002]
[1758754131368,11.61167931,4164.3,4164.2,0.002]
[1758754135037,12.03037931,4164.3,4164.2,0.002]
[1758754135237,2.40187292,4163.5,4163.1,14.52]
[1758754135471,3.0,4163.3,4163.1,14.52]
[1758754135664,9.39599846,4163.2,4163.1,0.02]
[1758754136455,9.39599846,4163.2,4163.1,0.2452]
[1758754136693,6.994,4163.2,4163.1,0.2452]
[1758754137259,6.994,4163.2,4163.1,0.701]
[1758754138681,3.0,4163.2,4163.1,3.41357871]
[1758754138906,3.0,4163.2,4163.1,1.01152255]
[1758754139058,3.0,4163.2,4163.1,3.10305616]
[1758754139261,3.0,4163.2,4163.1,17.60305616]
[1758754139491,3.0,4163.2,4163.1,15.201]
[1758754139896,6.995,4163.2,4163.1,15.201]
[1758754140468,6.995,4163.2,4163.1,14.7452]
[1758754140690,6.995,4163.2,4163.1,15.1854]
[1758754142638,8.996,4163.2,4163.1,0.02]
[1758754142906,11.39799846,4163.2,4163.1,0.02]
[1758754143268,5.40199846,4163.2,4163.1,0.02]
[1758754143488,11.40099846,4163.2,4163.1,0.02]
[1758754146830,3.0,4163.2,4163.1,0.02]
[1758754147031,3.0,4163.2,4163.1,0.6972]
[1758754147216,6.998,4163.2,4163.1,0.6972]
[1758754148506,3.0,4163.2,4163.1,3.10125616]
[1758754148831,6.998,4163.2,4163.1,0.6992]
[1758754149204,7.37464313,4163.2,4163.1,0.6992]
[1758754149431,7.37464313,4163.2,4163.1,0.022]
[1758754149645,9.77664159,4163.2,4163.1,0.022]
[1758754149852,9.39999846,4163.2,4163.1,0.022]
[1758754150842,6.998,4163.2,4163.1,0.022]
[1758754151340,9.39999846,4163.2,4163.1,0.022]
[1758754155242,9.88379846,4163.2,4163.1,0.022]
[1758754155447,9.39999846,4163.2,4163.1,0.022]
[1758754156115,9.88379846,4163.2,4163.1,0.022]
[1758754156516,9.88379846,4163.2,4163.0,0.002]
[1758754156517,2.40205616,4163.1,4163.0,0.002]
[1758754156716,5.40205616,4163.1,4163.0,0.002]
[1758754157033,5.82075616,4163.1,4163.0,0.002]
[1758754157237,5.40205616,4163.1,4163.0,0.002]
[1758754158044,5.49839957,4163.1,4163.0,0.002]
[1758754161056,11.49939957,4163.1,4163.0,0.2462]
[1758754161220,11.49939957,4163.1,4163.0,0.002]
[1758754162046,5.49839957,4163.1,4163.0,0.002]
[1758754162225,11.49939957,4163.1,4163.0,0.002]
[1758754162925,11.49939957,4163.1,4163.0,0.2462]
[1758754163458,11.49939957,4163.1,4163.0,0.002]
[1758754163628,9.49739957,4163.1,4163.0,0.002]
[1758754163955,11.49939957,4163.1,4163.0,0.002]
[1758754164859,11.49939957,4163.1,4163.0,0.2462]
[1758754165062,11.49939957,4163.1,4163.0,0.002]
[1758754165571,9.09634341,4163.1,4163.0,0.6804]
[1758754165862,7.09434341,4163.1,4163.0,0.6804]
[1758754166066,9.09634341,4163.1,4163.0,0.6804]
[1758754166265,11.49839957,4163.1,4163.0,0.6804]
[1758754166866,11.49939957,4163.1,4163.0,0.6804]
[1758754168478,9.09734341,4163.1,4163.0,0.6804]
[1758754169168,11.49939957,4163.1,4163.0,0.6804]
[1758754170767,2.003,4163.1,4163.0,0.6804]
[1758754170966,6.0,4163.1,4163.0,0.6804]